Workbook

Sheet Лист1
D1: время вкл. Нагрева | E1: =IF(ISNA(VLOOKUP(D8,[1]Jun!$H:$I,2,0)),"",VLOOKUP(D8,[1]Jun!$H:$I,2,0)) -> 01:30
D2: время вкл. Эл-ра | E2: =IF(ISNA(VLOOKUP(D8,[1]Jun!$H:$J,3,0)),"",VLOOKUP(D8,[1]Jun!$H:$J,3,0)) -> 03:00 | G2: =D8 -> 42385.8
D3: время остановки
D4: Дата | E4: 2024-06-01 | F4: Цикл № | G4: 1 | J4: NaOH | L4: =VLOOKUP2caind([2]Jun!$A$1:$G$10000,1,"NaOH/1",COUNTIF($E$3:E4,E4),7,E4,[2]Jun!$K$1:$K$10000) -> 22 | N4: Вот тут всё правильно пишет. | R4: 22 | S4: то что должно | V4: =COUNTIF($E$3:E4,E4) -> 1
D6: Показания сумматора | E6: проток | G6: Au, мг/л | I6: Ag, мг/л | L6: Извлечение, %
F7: вход | G7: выход | H7: Осаждено, Гр | I7: вход | J7: выход | K7: Осаждено, Гр | L7: Au | M7: Ag
B8: =IF($E$2="","",E2) -> 03:00 | C8: 0 | D8: =IFERROR(VLOOKUP(G4&"/1 "&C8&"-*",[1]Jun!$A:$H,8,),"") -> 42385.8 | H8: =IFERROR((F8-G8)*E8,"") -> 0 | K8: =IFERROR((I8-J8)*E8,"") -> 0 | L8: =IFERROR((F8-G8)/F8*100,"") ->  | M8: =IFERROR((I8-J8)/I8*100,"") -> 
B9: =IF(D9="","",IFERROR(B8+1/24,"")) -> 04:00:00 | C9: 1 | D9: =IFERROR(VLOOKUP(G4&"/1 "&C9&"-*",[1]Jun!$A:$H,8,),"") -> 42389.6 | E9: =IF(D9="","",D9-D8) -> 3.8 | F9: =IFERROR(VLOOKUP($G$4&"/1 "&$C9&"-1",[1]Jun!$A:$C,2,),"") -> 47.8764 | G9: =IFERROR(VLOOKUP($G$4&"/1 "&$C9&"-2",[1]Jun!$A:$C,2,),"") -> 31.21203 | H9: 63.324606 | I9: =IFERROR(VLOOKUP($G$4&"/1 "&$C9&"-1",[1]Jun!$A:$C,3,),"") -> 13.32052 | J9: =IFERROR(VLOOKUP($G$4&"/1 "&$C9&"-2",[1]Jun!$A:$C,3,),"") -> 9.95201 | K9: 12.800338 | L9: =IFERROR((F9-G9)/F9*100,"") -> 34.80706569 | M9: =IFERROR((I9-J9)/I9*100,"") -> 25.28812689
B10: =IF(D10="","",IFERROR(B9+1/24,"")) -> 05:00:00 | C10: 2 | D10: =IFERROR(VLOOKUP(G4&"/1 "&C10&"-*",[1]Jun!$A:$H,8,),"") -> 42392.95 | E10: 3.35 | F10: =IFERROR(VLOOKUP($G$4&"/1 "&$C10&"-1",[1]Jun!$A:$C,2,),"") -> 82.73533 | G10: =IFERROR(VLOOKUP($G$4&"/1 "&$C10&"-2",[1]Jun!$A:$C,2,),"") -> 41.77848 | H10: 137.2054475 | I10: =IFERROR(VLOOKUP($G$4&"/1 "&$C10&"-1",[1]Jun!$A:$C,3,),"") -> 18.76906 | J10: =IFERROR(VLOOKUP($G$4&"/1 "&$C10&"-2",[1]Jun!$A:$C,3,),"") -> 8.82456 | K10: 33.314075 | L10: 49.5034588 | M10: 52.98347387
B11: 06:00:00 | C11: 3 | D11: =IFERROR(VLOOKUP(G4&"/1 "&C11&"-*",[1]Jun!$A:$H,8,),"") -> 42396.23 | E11: 3.28 | F11: =IFERROR(VLOOKUP($G$4&"/1 "&$C11&"-1",[1]Jun!$A:$C,2,),"") -> 89.17547 | G11: =IFERROR(VLOOKUP($G$4&"/1 "&$C11&"-2",[1]Jun!$A:$C,2,),"") -> 45.4338 | H11: 143.4726776 | I11: =IFERROR(VLOOKUP($G$4&"/1 "&$C11&"-1",[1]Jun!$A:$C,3,),"") -> 17.03958 | J11: =IFERROR(VLOOKUP($G$4&"/1 "&$C11&"-2",[1]Jun!$A:$C,3,),"") -> 8.11491 | K11: 29.2729176 | L11: 49.05123573 | M11: 52.3761149
B12: 07:00:00 | C12: 4 | D12: =IFERROR(VLOOKUP(G4&"/1 "&$C12&"-*",[1]Jun!$A:$H,8,),"") -> 42399.68 | E12: 3.45 | F12: =IFERROR(VLOOKUP($G$4&"/1 "&$C12&"-1",[1]Jun!$A:$C,2,),"") -> 103.368 | G12: =IFERROR(VLOOKUP($G$4&"/1 "&$C12&"-2",[1]Jun!$A:$C,2,),"") -> 47.10567 | H12: 194.1050385 | I12: =IFERROR(VLOOKUP($G$4&"/1 "&$C12&"-1",[1]Jun!$A:$C,3,),"") -> 14.56984 | J12: =IFERROR(VLOOKUP($G$4&"/1 "&$C12&"-2",[1]Jun!$A:$C,3,),"") -> 7.00951 | K12: 26.0831385 | L12: 54.42915603 | M12: 51.8902747
B13: 08:00:00 | C13: 5 | D13: =IFERROR(VLOOKUP($G$4&"/1 "&C13&"-*",[1]Jun!$A:$H,8,),"") -> 42403.26 | E13: 3.58 | F13: =IFERROR(VLOOKUP($G$4&"/1 "&$C13&"-1",[1]Jun!$A:$C,2,),"") -> 104.497 | G13: =IFERROR(VLOOKUP($G$4&"/1 "&$C13&"-2",[1]Jun!$A:$C,2,),"") -> 36.11903 | H13: 244.7931326 | I13: =IFERROR(VLOOKUP($G$4&"/1 "&$C13&"-1",[1]Jun!$A:$C,3,),"") -> 10.90123 | J13: =IFERROR(VLOOKUP($G$4&"/1 "&$C13&"-2",[1]Jun!$A:$C,3,),"") -> 3.93236 | K13: 24.9485546 | L13: 65.43534264 | M13: 63.92737333
B14: 09:00:00 | C14: 6 | D14: =IFERROR(VLOOKUP($G$4&"/1 "&$C14&"-*",[1]Jun!$A:$H,8,),"") -> 42406.61 | E14: 3.35 | F14: =IFERROR(VLOOKUP($G$4&"/1 "&$C14&"-1",[1]Jun!$A:$C,2,),"") -> 88.92206 | G14: =IFERROR(VLOOKUP($G$4&"/1 "&$C14&"-2",[1]Jun!$A:$C,2,),"") -> 33.22918 | H14: 186.571148 | I14: =IFERROR(VLOOKUP($G$4&"/1 "&$C14&"-1",[1]Jun!$A:$C,3,),"") -> 6.76576 | J14: =IFERROR(VLOOKUP($G$4&"/1 "&$C14&"-2",[1]Jun!$A:$C,3,),"") -> 2.99389 | K14: 12.6357645 | L14: 62.63111763 | M14: 55.74939105
B15: 10:00:00 | C15: 7 | D15: =IFERROR(VLOOKUP($G$4&"/1 "&$C15&"-*",[1]Jun!$A:$H,8,),"") -> 42409.93 | E15: =IF(D15="","",D15-D14) -> 3.32 | F15: =IFERROR(VLOOKUP($G$4&"/1 "&$C15&"-1",[1]Jun!$A:$C,2,),"") -> 78.26958 | G15: =IFERROR(VLOOKUP($G$4&"/1 "&$C15&"-2",[1]Jun!$A:$C,2,),"") -> 29.16854 | H15: 163.0154528 | I15: =IFERROR(VLOOKUP($G$4&"/1 "&$C15&"-1",[1]Jun!$A:$C,3,),"") -> 3.5871 | J15: =IFERROR(VLOOKUP($G$4&"/1 "&$C15&"-2",[1]Jun!$A:$C,3,),"") -> 1.28159 | K15: 7.6542932 | L15: 62.73323557 | M15: 64.27225335
B16: 11:00:00 | C16: 8 | D16: =IFERROR(VLOOKUP($G$4&"/1 "&$C16&"-*",[1]Jun!$A:$H,8,),"") -> 42413.39 | E16: =IF(D16="","",D16-D15) -> 3.46 | F16: =IFERROR(VLOOKUP($G$4&"/1 "&$C16&"-1",[1]Jun!$A:$C,2,),"") -> 59.09927 | G16: =IFERROR(VLOOKUP($G$4&"/1 "&$C16&"-2",[1]Jun!$A:$C,2,),"") -> 24.65402 | H16: 119.180565 | I16: =IFERROR(VLOOKUP($G$4&"/1 "&$C16&"-1",[1]Jun!$A:$C,3,),"") -> 0.96192 | J16: =IFERROR(VLOOKUP($G$4&"/1 "&$C16&"-2",[1]Jun!$A:$C,3,),"") -> 0.4812 | K16: 1.6632912 | L16: 58.28371484 | M16: 49.9750499
B17: 12:00:00 | C17: 9 | D17: =IFERROR(VLOOKUP($G$4&"/1 "&$C17&"-*",[1]Jun!$A:$H,8,),"") -> 42416.91 | E17: =IF(D17="","",D17-D16) -> 3.52 | F17: =IFERROR(VLOOKUP($G$4&"/1 "&$C17&"-1",[1]Jun!$A:$C,2,),"") -> 47.03838 | G17: =IFERROR(VLOOKUP($G$4&"/1 "&$C17&"-2",[1]Jun!$A:$C,2,),"") -> 17.11459 | H17: 105.3317408 | I17: =IFERROR(VLOOKUP($G$4&"/1 "&$C17&"-1",[1]Jun!$A:$C,3,),"") -> 0.83494 | J17: =IFERROR(VLOOKUP($G$4&"/1 "&$C17&"-2",[1]Jun!$A:$C,3,),"") -> 0.37108 | K17: 1.6327872 | L17: 63.61569 | M17: 55.55608786
B18: 13:00:00 | C18: 10 | D18: =IFERROR(VLOOKUP($G$4&"/1 "&$C18&"-*",[1]Jun!$A:$H,8,),"") -> 42420.35 | E18: 3.44 | F18: =IFERROR(VLOOKUP($G$4&"/1 "&$C18&"-1",[1]Jun!$A:$C,2,),"") -> 39.49963 | G18: =IFERROR(VLOOKUP($G$4&"/1 "&$C18&"-2",[1]Jun!$A:$C,2,),"") -> 16.13663 | H18: 80.36872 | I18: =IFERROR(VLOOKUP($G$4&"/1 "&$C18&"-1",[1]Jun!$A:$C,3,),"") -> 0.27165 | J18: =IFERROR(VLOOKUP($G$4&"/1 "&$C18&"-2",[1]Jun!$A:$C,3,),"") -> 0 | K18: 0.934476 | L18: 59.14738948 | M18: 100
B19: 14:00:00 | C19: 11 | D19: =IFERROR(VLOOKUP($G$4&"/1 "&$C19&"-*",[1]Jun!$A:$H,8,),"") -> 42423.82 | E19: 3.47 | F19: =IFERROR(VLOOKUP($G$4&"/1 "&$C19&"-1",[1]Jun!$A:$C,2,),"") -> 30.46289 | G19: =IFERROR(VLOOKUP($G$4&"/1 "&$C19&"-2",[1]Jun!$A:$C,2,),"") -> 15.11192 | H19: 53.2678659 | I19: =IFERROR(VLOOKUP($G$4&"/1 "&$C19&"-1",[1]Jun!$A:$C,3,),"") -> 0.41001 | J19: =IFERROR(VLOOKUP($G$4&"/1 "&$C19&"-2",[1]Jun!$A:$C,3,),"") -> 0 | K19: 1.4227347 | L19: 50.39236264 | M19: 100
B20: 15:00:00 | C20: 12 | D20: =IFERROR(VLOOKUP($G$4&"/1 "&$C20&"-*",[1]Jun!$A:$H,8,),"") -> 42427.53 | E20: 3.71 | F20: =IFERROR(VLOOKUP($G$4&"/1 "&$C20&"-1",[1]Jun!$A:$C,2,),"") -> 30.51739 | G20: =IFERROR(VLOOKUP($G$4&"/1 "&$C20&"-2",[1]Jun!$A:$C,2,),"") -> 15.08001 | H20: 57.2726798 | I20: =IFERROR(VLOOKUP($G$4&"/1 "&$C20&"-1",[1]Jun!$A:$C,3,),"") -> 0.14637 | J20: =IFERROR(VLOOKUP($G$4&"/1 "&$C20&"-2",[1]Jun!$A:$C,3,),"") -> 0 | K20: 0.5430327 | L20: 50.58551862 | M20: 100
H21: =SUM(H8:H20) -> 1547.909074 | K21: =SUM(K8:K20) -> 152.9054032
D22: время вкл. Нагрева | E22: =IF(ISNA(VLOOKUP(D29,[1]Jun!$H:$I,2,0)),"",VLOOKUP(D29,[1]Jun!$H:$I,2,0)) -> 16:40
D23: время вкл. Эл-ра | E23: =IF(ISNA(VLOOKUP(D29,[1]Jun!$H:$J,3,0)),"",VLOOKUP(D29,[1]Jun!$H:$J,3,0)) -> 18:00 | G23: =D29 -> 42435.49
D24: время остановки
D25: Дата | E25: =IF(E23="","",IF(E23<=INDEX(E:E,MAX(IF(D$1:D22="время вкл. Эл-ра",ROW(D$1:D22)))),1,0)+INDEX(E:E,MAX(IF(D$1:D24="Дата",ROW(D$1:D24))))) -> 2024-06-01 | F25: Цикл № | G25: =G4+1 -> 2 | J25: NaOH, г/л | L25: =VLOOKUP2caind([2]Jun!$A$1:$G$10000,1,"NaOH/1",COUNTIF($E$3:E25,E25),7,E25,[2]Jun!$K$1:$K$10000) -> 18 | M25: Здесь ставит тоже самое число | R25: 18 | S25: то что должно
D27: Показания сумматора | E27: проток | G27: Au, мг/л | I27: Ag, мг/л | L27: Извлечение, %
F28: вход | G28: выход | H28: Осаждено, Гр | I28: вход | J28: выход | K28: Осаждено, Гр | L28: Au | M28: Ag
B29: =IF($E$23="","",E23) -> 18:00 | C29: 0 | D29: =IFERROR(VLOOKUP(G25&"/1 "&$C29&"-*",[1]Jun!$A:$H,8,),"") -> 42435.49 | H29: =IFERROR((F29-G29)*E29,"") -> 0 | K29: =IFERROR((I29-J29)*E29,"") -> 0 | L29: =IFERROR((F29-G29)/F29*100,"") ->  | M29: =IFERROR((I29-J29)/I29*100,"") -> 
B30: =IF(D30="","",IFERROR(B29+1/24,"")) -> 19:00:00 | C30: 1 | D30: =IFERROR(VLOOKUP(G25&"/1 "&$C30&"-*",[1]Jun!$A:$H,8,),"") -> 42439.17 | E30: =IF(D30="","",D30-D29) -> 3.68 | F30: =IFERROR(VLOOKUP(G25&"/1 "&$C30&"-1",[1]Jun!$A:$C,2,),"") -> 67.49132 | G30: =IFERROR(VLOOKUP(G25&"/1 "&$C30&"-2",[1]Jun!$A:$C,2,),"") -> 31.8689 | H30: 131.0905056 | I30: =IFERROR(VLOOKUP(G25&"/1 "&$C30&"-1",[1]Jun!$A:$C,3,),"") -> 18.27774 | J30: =IFERROR(VLOOKUP(G25&"/1 "&$C30&"-2",[1]Jun!$A:$C,3,),"") -> 8.41475 | K30: 36.2958032 | L30: =IFERROR((F30-G30)/F30*100,"") -> 52.78074277 | M30: =IFERROR((I30-J30)/I30*100,"") -> 53.96175895
B31: =IF(D31="","",IFERROR(B30+1/24,"")) -> 20:00:00 | C31: 2 | D31: =IFERROR(VLOOKUP(G25&"/1 "&$C31&"-*",[1]Jun!$A:$H,8,),"") -> 42442.64 | E31: 3.47 | F31: =IFERROR(VLOOKUP(G25&"/1 "&$C31&"-1",[1]Jun!$A:$C,2,),"") -> 96.35185 | G31: =IFERROR(VLOOKUP(G25&"/1 "&$C31&"-2",[1]Jun!$A:$C,2,),"") -> 37.08584 | H31: 205.6530547 | I31: =IFERROR(VLOOKUP(G25&"/1 "&$C31&"-1",[1]Jun!$A:$C,3,),"") -> 21.35491 | J31: =IFERROR(VLOOKUP(G25&"/1 "&$C31&"-2",[1]Jun!$A:$C,3,),"") -> 5.96501 | K31: 53.402953 | L31: 61.50998658 | M31: 72.06726697
B32: 21:00:00 | C32: 3 | D32: =IFERROR(VLOOKUP(G25&"/1 "&$C32&"-*",[1]Jun!$A:$H,8,),"") -> 42445.97 | E32: 3.33 | F32: =IFERROR(VLOOKUP(G25&"/1 "&$C32&"-1",[1]Jun!$A:$C,2,),"") -> 105.816 | G32: =IFERROR(VLOOKUP(G25&"/1 "&$C32&"-2",[1]Jun!$A:$C,2,),"") -> 39.36101 | H32: 221.2951167 | I32: =IFERROR(VLOOKUP(G25&"/1 "&$C32&"-1",[1]Jun!$A:$C,3,),"") -> 18.3372 | J32: =IFERROR(VLOOKUP(G25&"/1 "&$C32&"-2",[1]Jun!$A:$C,3,),"") -> 6.14315 | K32: 40.6061865 | L32: 62.80240228 | M32: =IFERROR((I32-J32)/I32*100,"") -> 66.49897476
B33: 22:00:00 | C33: 4 | D33: =IFERROR(VLOOKUP(G25&"/1 "&$C33&"-*",[1]Jun!$A:$H,8,),"") -> 42449.42 | E33: 3.45 | F33: =IFERROR(VLOOKUP(G25&"/1 "&$C33&"-1",[1]Jun!$A:$C,2,),"") -> 96.34071 | G33: =IFERROR(VLOOKUP(G25&"/1 "&$C33&"-2",[1]Jun!$A:$C,2,),"") -> 36.6858 | H33: 205.8094395 | I33: =IFERROR(VLOOKUP(G25&"/1 "&$C33&"-1",[1]Jun!$A:$C,3,),"") -> 15.55963 | J33: =IFERROR(VLOOKUP(G25&"/1 "&$C33&"-2",[1]Jun!$A:$C,3,),"") -> 5.55555 | K33: 34.514076 | L33: 61.92077057 | M33: =IFERROR((I33-J33)/I33*100,"") -> 64.29510213
B34: 23:00:00 | C34: 5 | D34: =IFERROR(VLOOKUP(G25&"/1 "&$C34&"-*",[1]Jun!$A:$H,8,),"") -> 42452.87 | E34: 3.45 | F34: =IFERROR(VLOOKUP(G25&"/1 "&$C34&"-1",[1]Jun!$A:$C,2,),"") -> 80.09231 | G34: =IFERROR(VLOOKUP(G25&"/1 "&$C34&"-2",[1]Jun!$A:$C,2,),"") -> 30.16559 | H34: 172.247184 | I34: =IFERROR(VLOOKUP(G25&"/1 "&$C34&"-1",[1]Jun!$A:$C,3,),"") -> 8.48396 | J34: =IFERROR(VLOOKUP(G25&"/1 "&$C34&"-2",[1]Jun!$A:$C,3,),"") -> 3.14458 | K34: 18.420861 | L34: 62.3364715 | M34: =IFERROR((I34-J34)/I34*100,"") -> 62.93499734
B35: 1 | C35: 6 | D35: =IFERROR(VLOOKUP(G25&"/1 "&$C35&"-*",[1]Jun!$A:$H,8,),"") -> 42456.27 | E35: 3.4 | F35: =IFERROR(VLOOKUP(G25&"/1 "&$C35&"-1",[1]Jun!$A:$C,2,),"") -> 73.53395 | G35: =IFERROR(VLOOKUP(G25&"/1 "&$C35&"-2",[1]Jun!$A:$C,2,),"") -> 21.044 | H35: 178.46583 | I35: =IFERROR(VLOOKUP(G25&"/1 "&$C35&"-1",[1]Jun!$A:$C,3,),"") -> 6.26889 | J35: =IFERROR(VLOOKUP(G25&"/1 "&$C35&"-2",[1]Jun!$A:$C,3,),"") -> 2.25277 | K35: 13.654808 | L35: 71.38192631 | M35: 64.06429208
B36: 1.041666667 | C36: 7 | D36: =IFERROR(VLOOKUP(G25&"/1 "&$C36&"-*",[1]Jun!$A:$H,8,),"") -> 42460 | E36: =IF(D36="","",D36-D35) -> 3.73 | F36: =IFERROR(VLOOKUP(G25&"/1 "&$C36&"-1",[1]Jun!$A:$C,2,),"") -> 61.27694 | G36: =IFERROR(VLOOKUP(G25&"/1 "&$C36&"-2",[1]Jun!$A:$C,2,),"") -> 21.76634 | H36: =IFERROR((F36-G36)*E36,"") -> 147.374538 | I36: =IFERROR(VLOOKUP(G25&"/1 "&$C36&"-1",[1]Jun!$A:$C,3,),"") -> 2.67461 | J36: =IFERROR(VLOOKUP(G25&"/1 "&$C36&"-2",[1]Jun!$A:$C,3,),"") -> 1.75172 | K36: 3.4423797 | L36: 64.47874192 | M36: 34.50559147
B37: 1.083333333 | C37: 8 | D37: =IFERROR(VLOOKUP(G25&"/1 "&$C37&"-*",[1]Jun!$A:$H,8,),"") -> 42463.32 | E37: =IF(D37="","",D37-D36) -> 3.32 | F37: =IFERROR(VLOOKUP(G25&"/1 "&$C37&"-1",[1]Jun!$A:$C,2,),"") -> 51.04715 | G37: =IFERROR(VLOOKUP(G25&"/1 "&$C37&"-2",[1]Jun!$A:$C,2,),"") -> 17.22768 | H37: =IFERROR((F37-G37)*E37,"") -> 112.2806404 | I37: =IFERROR(VLOOKUP(G25&"/1 "&$C37&"-1",[1]Jun!$A:$C,3,),"") -> 2.01624 | J37: =IFERROR(VLOOKUP(G25&"/1 "&$C37&"-2",[1]Jun!$A:$C,3,),"") -> 0.79484 | K37: 4.055048 | L37: 66.25143617 | M37: 60.57810578
B38: 1.125 | C38: 9 | D38: =IFERROR(VLOOKUP(G25&"/1 "&$C38&"-*",[1]Jun!$A:$H,8,),"") -> 42466.77 | E38: =IF(D38="","",D38-D37) -> 3.45 | F38: =IFERROR(VLOOKUP(G$25&"/1 "&$C38&"-1",[1]Jun!$A:$C,2,),"") -> 47.19737 | G38: =IFERROR(VLOOKUP(G25&"/1 "&$C38&"-2",[1]Jun!$A:$C,2,),"") -> 14.19661 | H38: 113.852622 | I38: =IFERROR(VLOOKUP(G25&"/1 "&$C38&"-1",[1]Jun!$A:$C,3,),"") -> 1.17575 | J38: =IFERROR(VLOOKUP(G25&"/1 "&$C38&"-2",[1]Jun!$A:$C,3,),"") -> 0 | K38: 4.0563375 | L38: 69.92076042 | M38: 100
B39: 1.166666667 | C39: 10 | D39: =IFERROR(VLOOKUP(G25&"/1 "&$C39&"-*",[1]Jun!$A:$H,8,),"") -> 42470.01 | E39: 3.24 | F39: =IFERROR(VLOOKUP(G25&"/1 "&$C39&"-1",[1]Jun!$A:$C,2,),"") -> 36.30685 | G39: =IFERROR(VLOOKUP(G25&"/1 "&$C39&"-2",[1]Jun!$A:$C,2,),"") -> 12.98188 | H39: 75.5729028 | I39: =IFERROR(VLOOKUP(G25&"/1 "&$C39&"-1",[1]Jun!$A:$C,3,),"") -> 1.07829 | J39: =IFERROR(VLOOKUP(G25&"/1 "&$C39&"-2",[1]Jun!$A:$C,3,),"") -> 0.76987 | K39: 0.9992808 | L39: 64.24399252 | M39: 28.60269501
B40: 1.208333333 | C40: 11 | D40: =IFERROR(VLOOKUP(G25&"/1 "&$C40&"-*",[1]Jun!$A:$H,8,),"") -> 42473.59 | E40: 3.58 | F40: =IFERROR(VLOOKUP(G25&"/1 "&$C40&"-1",[1]Jun!$A:$C,2,),"") -> 27.50135 | G40: =IFERROR(VLOOKUP(G25&"/1 "&$C40&"-2",[1]Jun!$A:$C,2,),"") -> 10.75364 | H40: 59.9568018 | I40: =IFERROR(VLOOKUP(G25&"/1 "&$C40&"-1",[1]Jun!$A:$C,3,),"") -> 0.82404 | J40: =IFERROR(VLOOKUP(G25&"/1 "&$C40&"-2",[1]Jun!$A:$C,3,),"") -> 0 | K40: 2.9500632 | L40: 60.89777411 | M40: 100
B41: 1.25 | C41: 12 | D41: =IFERROR(VLOOKUP(G25&"/1 "&$C41&"-*",[1]Jun!$A:$H,8,),"") -> 42476.88 | E41: 3.29 | F41: =IFERROR(VLOOKUP(G25&"/1 "&$C41&"-1",[1]Jun!$A:$C,2,),"") -> 25.01134 | G41: =IFERROR(VLOOKUP(G25&"/1 "&$C41&"-2",[1]Jun!$A:$C,2,),"") -> 8.42409 | H41: 54.5720525 | I41: =IFERROR(VLOOKUP(G25&"/1 "&$C41&"-1",[1]Jun!$A:$C,3,),"") -> 0.27039 | J41: =IFERROR(VLOOKUP(G25&"/1 "&$C41&"-2",[1]Jun!$A:$C,3,),"") -> 0.14668 | K41: 0.4070059 | L41: 66.31891774 | M41: 45.75243167
H42: =SUM(H29:H41) -> 1678.170688 | K42: =SUM(K29:K41) -> 212.8048028
D43: время вкл. Нагрева | E43: =IF(ISNA(VLOOKUP(D50,[1]Jun!$H:$I,2,0)),"",VLOOKUP(D50,[1]Jun!$H:$I,2,0)) -> 07:40
D44: время вкл. Эл-ра | E44: =IF(ISNA(VLOOKUP(D50,[1]Jun!$H:$J,3,0)),"",VLOOKUP(D50,[1]Jun!$H:$J,3,0)) -> 09:00 | G44: =D50 -> 42484.9
D45: время остановки
D46: Дата | E46: =IF(E44="","",IF(E44<=INDEX(E:E,MAX(IF(D$1:D43="время вкл. Эл-ра",ROW(D$1:D43)))),1,0)+INDEX(E:E,MAX(IF(D$1:D45="Дата",ROW(D$1:D45))))) -> 2024-06-02 | F46: Цикл № | G46: 3 | J46: NaOH, г/л | L46: =VLOOKUP2caind([2]Jun!$A$1:$G$10000,1,"NaOH/1",COUNTIF($E$3:E46,E46),7,E46,[2]Jun!$K$1:$K$10000) ->  | N46: Тут не пишет ничего. | P46: потому что да за 02.06 нет данных NaOH/1
D48: Показания сумматора | E48: проток | G48: Au, мг/л | I48: Ag, мг/л | L48: Извлечение, %
F49: вход | G49: выход | H49: Осаждено, Гр | I49: вход | J49: выход | K49: Осаждено, Гр | L49: Au | M49: Ag
B50: =IF($E$44="","",E44) -> 09:00 | C50: 0 | D50: =IFERROR(VLOOKUP(G46&"/1 "&$C50&"-*",[1]Jun!$A:$H,8,),"") -> 42484.9 | H50: =IFERROR((F50-G50)*E50,"") -> 0 | K50: =IFERROR((I50-J50)*E50,"") -> 0 | L50: =IFERROR((F50-G50)/F50*100,"") ->  | M50: =IFERROR((I50-J50)/I50*100,"") -> 
B51: =IF(D51="","",IFERROR(B50+1/24,"")) -> 10:00:00 | C51: 1 | D51: =IFERROR(VLOOKUP(G46&"/1 "&$C51&"-*",[1]Jun!$A:$H,8,),"") -> 42488.38 | E51: =IF(D51="","",D51-D50) -> 3.48 | F51: =IFERROR(VLOOKUP(G46&"/1 "&$C51&"-1",[1]Jun!$A:$C,2,),"") -> 36.94813 | G51: =IFERROR(VLOOKUP(G46&"/1 "&$C51&"-2",[1]Jun!$A:$C,2,),"") -> 24.9273 | H51: 41.8324884 | I51: =IFERROR(VLOOKUP(G46&"/1 "&$C51&"-1",[1]Jun!$A:$C,3,),"") -> 11.17848 | J51: =IFERROR(VLOOKUP(G46&"/1 "&$C51&"-2",[1]Jun!$A:$C,3,),"") -> 4.64204 | K51: 22.7468112 | L51: =IFERROR((F51-G51)/F51*100,"") -> 32.53433936 | M51: =IFERROR((I51-J51)/I51*100,"") -> 58.47342394
B52: =IF(D52="","",IFERROR(B51+1/24,"")) -> 11:00:00 | C52: 2 | D52: =IFERROR(VLOOKUP(G46&"/1 "&$C52&"-*",[1]Jun!$A:$H,8,),"") -> 42491.94 | E52: 3.56 | F52: =IFERROR(VLOOKUP(G46&"/1 "&$C52&"-1",[1]Jun!$A:$C,2,),"") -> 68.14064 | G52: =IFERROR(VLOOKUP(G46&"/1 "&$C52&"-2",[1]Jun!$A:$C,2,),"") -> 33.94788 | H52: 121.7262256 | I52: =IFERROR(VLOOKUP(G46&"/1 "&$C52&"-1",[1]Jun!$A:$C,3,),"") -> 16.61556 | J52: =IFERROR(VLOOKUP(G46&"/1 "&$C52&"-2",[1]Jun!$A:$C,3,),"") -> 6.12666 | K52: 37.340484 | L52: 50.17968719 | M52: 63.12697255
B53: 12:00:00 | C53: 3 | D53: =IFERROR(VLOOKUP(G46&"/1 "&$C53&"-*",[1]Jun!$A:$H,8,),"") -> 42495.54 | E53: 3.6 | F53: =IFERROR(VLOOKUP(G46&"/1 "&$C53&"-1",[1]Jun!$A:$C,2,),"") -> 86.25096 | G53: =IFERROR(VLOOKUP(G46&"/1 "&$C53&"-2",[1]Jun!$A:$C,2,),"") -> 42.94398 | H53: 155.905128 | I53: =IFERROR(VLOOKUP(G46&"/1 "&$C53&"-1",[1]Jun!$A:$C,3,),"") -> 16.25986 | J53: =IFERROR(VLOOKUP(G46&"/1 "&$C53&"-2",[1]Jun!$A:$C,3,),"") -> 7.87518 | K53: 30.184848 | L53: 50.21043244 | M53: =IFERROR((I53-J53)/I53*100,"") -> 51.56674166
B54: 13:00:00 | C54: 4 | D54: =IFERROR(VLOOKUP(G46&"/1 "&$C54&"-*",[1]Jun!$A:$H,8,),"") -> 42499.1 | E54: 3.56 | F54: =IFERROR(VLOOKUP(G46&"/1 "&$C54&"-1",[1]Jun!$A:$C,2,),"") -> 71.63926 | G54: =IFERROR(VLOOKUP(G46&"/1 "&$C54&"-2",[1]Jun!$A:$C,2,),"") -> 45.50303 | H54: 93.0449788 | I54: =IFERROR(VLOOKUP(G46&"/1 "&$C54&"-1",[1]Jun!$A:$C,3,),"") -> 10.79099 | J54: =IFERROR(VLOOKUP(G46&"/1 "&$C54&"-2",[1]Jun!$A:$C,3,),"") -> 6.39702 | K54: 15.6425332 | L54: 36.48310996 | M54: =IFERROR((I54-J54)/I54*100,"") -> 40.71887751
B55: 14:00:00 | C55: 5 | D55: =IFERROR(VLOOKUP(G46&"/1 "&$C55&"-*",[1]Jun!$A:$H,8,),"") -> 42502.65 | E55: 3.55 | F55: =IFERROR(VLOOKUP(G46&"/1 "&$C55&"-1",[1]Jun!$A:$C,2,),"") -> 69.29084 | G55: =IFERROR(VLOOKUP(G46&"/1 "&$C55&"-2",[1]Jun!$A:$C,2,),"") -> 36.33137 | H55: 117.0061185 | I55: =IFERROR(VLOOKUP(G46&"/1 "&$C55&"-1",[1]Jun!$A:$C,3,),"") -> 8.51958 | J55: =IFERROR(VLOOKUP(G46&"/1 "&$C55&"-2",[1]Jun!$A:$C,3,),"") -> 4.47854 | K55: 14.345692 | L55: 47.56685011 | M55: =IFERROR((I55-J55)/I55*100,"") -> 47.43238516
B56: 15:00:00 | C56: 6 | D56: =IFERROR(VLOOKUP(G46&"/1 "&$C56&"-*",[1]Jun!$A:$H,8,),"") -> 42506.16 | E56: 3.51 | F56: =IFERROR(VLOOKUP(G46&"/1 "&$C56&"-1",[1]Jun!$A:$C,2,),"") -> 59.16332 | G56: =IFERROR(VLOOKUP(G46&"/1 "&$C56&"-2",[1]Jun!$A:$C,2,),"") -> 30.25039 | H56: 101.4843843 | I56: =IFERROR(VLOOKUP(G46&"/1 "&$C56&"-1",[1]Jun!$A:$C,3,),"") -> 4.70664 | J56: =IFERROR(VLOOKUP(G46&"/1 "&$C56&"-2",[1]Jun!$A:$C,3,),"") -> 3.0813 | K56: 5.7049434 | L56: 48.86968818 | M56: 34.5329152
B57: 16:00:00 | C57: 7 | D57: =IFERROR(VLOOKUP(G46&"/1 "&$C57&"-*",[1]Jun!$A:$H,8,),"") -> 42509.76 | E57: =IF(D57="","",D57-D56) -> 3.6 | F57: =IFERROR(VLOOKUP(G46&"/1 "&$C57&"-1",[1]Jun!$A:$C,2,),"") -> 63.92344 | G57: =IFERROR(VLOOKUP(G46&"/1 "&$C57&"-2",[1]Jun!$A:$C,2,),"") -> 31.26486 | H57: =IFERROR((F57-G57)*E57,"") -> 117.570888 | I57: =IFERROR(VLOOKUP(G46&"/1 "&$C57&"-1",[1]Jun!$A:$C,3,),"") -> 4.27248 | J57: =IFERROR(VLOOKUP(G46&"/1 "&$C57&"-2",[1]Jun!$A:$C,3,),"") -> 2.4139 | K57: 6.690888 | L57: 51.09014784 | M57: 43.50119837
B58: 17:00:00 | C58: 8 | D58: =IFERROR(VLOOKUP(G46&"/1 "&$C58&"-*",[1]Jun!$A:$H,8,),"") -> 42513.32 | E58: =IF(D58="","",D58-D57) -> 3.56 | F58: =IFERROR(VLOOKUP(G46&"/1 "&$C58&"-1",[1]Jun!$A:$C,2,),"") -> 59.15322 | G58: =IFERROR(VLOOKUP(G46&"/1 "&$C58&"-2",[1]Jun!$A:$C,2,),"") -> 26.05714 | H58: =IFERROR((F58-G58)*E58,"") -> 117.8220448 | I58: =IFERROR(VLOOKUP(G46&"/1 "&$C58&"-1",[1]Jun!$A:$C,3,),"") -> 2.19372 | J58: =IFERROR(VLOOKUP(G46&"/1 "&$C58&"-2",[1]Jun!$A:$C,3,),"") -> 1.87074 | K58: 1.1498088 | L58: 55.94975219 | M58: 14.72293638
B59: 18:00:00 | C59: 9 | D59: =IFERROR(VLOOKUP(G46&"/1 "&$C59&"-*",[1]Jun!$A:$H,8,),"") -> 42517.03 | E59: =IF(D59="","",D59-D58) -> 3.71 | F59: =IFERROR(VLOOKUP(G$46&"/1 "&$C59&"-1",[1]Jun!$A:$C,2,),"") -> 50.13083 | G59: =IFERROR(VLOOKUP(G46&"/1 "&$C59&"-2",[1]Jun!$A:$C,2,),"") -> 21.2001 | H59: 107.3330083 | I59: =IFERROR(VLOOKUP(G46&"/1 "&$C59&"-1",[1]Jun!$A:$C,3,),"") -> 1.82383 | J59: =IFERROR(VLOOKUP(G46&"/1 "&$C59&"-2",[1]Jun!$A:$C,3,),"") -> 1.39696 | K59: 1.5836877 | L59: 57.71045482 | M59: 23.40514193
B60: 19:00:00 | C60: 10 | D60: =IFERROR(VLOOKUP(G46&"/1 "&$C60&"-*",[1]Jun!$A:$H,8,),"") -> 42520.51 | E60: 3.48 | F60: =IFERROR(VLOOKUP(G46&"/1 "&$C60&"-1",[1]Jun!$A:$C,2,),"") -> 44.34961 | G60: =IFERROR(VLOOKUP(G46&"/1 "&$C60&"-2",[1]Jun!$A:$C,2,),"") -> 19.27169 | H60: 87.2711616 | I60: =IFERROR(VLOOKUP(G46&"/1 "&$C60&"-1",[1]Jun!$A:$C,3,),"") -> 1.38686 | J60: =IFERROR(VLOOKUP(G46&"/1 "&$C60&"-2",[1]Jun!$A:$C,3,),"") -> 0.43954 | K60: 3.2966736 | L60: 56.54597639 | M60: 68.30682261
B61: 20:00:00 | C61: 11 | D61: =IFERROR(VLOOKUP(G46&"/1 "&$C61&"-*",[1]Jun!$A:$H,8,),"") -> 42523.89 | E61: 3.38 | F61: =IFERROR(VLOOKUP(G46&"/1 "&$C61&"-1",[1]Jun!$A:$C,2,),"") -> 41.89605 | G61: =IFERROR(VLOOKUP(G46&"/1 "&$C61&"-2",[1]Jun!$A:$C,2,),"") -> 15.04048 | H61: 90.7718266 | I61: =IFERROR(VLOOKUP(G46&"/1 "&$C61&"-1",[1]Jun!$A:$C,3,),"") -> 1.61497 | J61: =IFERROR(VLOOKUP(G46&"/1 "&$C61&"-2",[1]Jun!$A:$C,3,),"") -> 1.18548 | K61: 1.4516762 | L61: 64.10048203 | M61: 26.59430206
B62: 21:00:00 | C62: 12 | D62: =IFERROR(VLOOKUP(G46&"/1 "&$C62&"-*",[1]Jun!$A:$H,8,),"") -> 42527.26 | E62: 3.37 | F62: =IFERROR(VLOOKUP(G46&"/1 "&$C62&"-1",[1]Jun!$A:$C,2,),"") -> 35.98977 | G62: =IFERROR(VLOOKUP(G46&"/1 "&$C62&"-2",[1]Jun!$A:$C,2,),"") -> 13.51148 | H62: 75.7518373 | I62: =IFERROR(VLOOKUP(G46&"/1 "&$C62&"-1",[1]Jun!$A:$C,3,),"") -> 0.83719 | J62: =IFERROR(VLOOKUP(G46&"/1 "&$C62&"-2",[1]Jun!$A:$C,3,),"") -> 0 | K62: 2.8213303 | L62: 62.45744277 | M62: 100
H63: =SUM(H50:H62) -> 1227.52009 | K63: =SUM(K50:K62) -> 142.9593764
D64: время вкл. Нагрева | E64: =IF(ISNA(VLOOKUP(D71,[1]Jun!$H:$I,2,0)),"",VLOOKUP(D71,[1]Jun!$H:$I,2,0)) -> 22:30
D65: время вкл. Эл-ра | E65: =IF(ISNA(VLOOKUP(D71,[1]Jun!$H:$J,3,0)),"",VLOOKUP(D71,[1]Jun!$H:$J,3,0)) -> 00:00 | G65: =D71 -> 42535.74
D66: время остановки
D67: Дата | E67: =IF(E65="","",IF(E65<=INDEX(E:E,MAX(IF(D$1:D64="время вкл. Эл-ра",ROW(D$1:D64)))),1,0)+INDEX(E:E,MAX(IF(D$1:D66="Дата",ROW(D$1:D66))))) -> 2024-06-03 | F67: Цикл № | G67: =G46+1 -> 4 | J67: NaOH, г/л | L67: =VLOOKUP2caind([2]Jun!$A$1:$G$10000,1,"NaOH/1",COUNTIF($E$3:E67,E67),7,E67,[2]Jun!$K$1:$K$10000) -> 21 | N67: верно
D69: Показания сумматора | E69: проток | G69: Au, мг/л | I69: Ag, мг/л | L69: Извлечение, %
F70: вход | G70: выход | H70: Осаждено, Гр | I70: вход | J70: выход | K70: Осаждено, Гр | L70: Au | M70: Ag
B71: =IF($E$65="","",E65) -> 00:00 | C71: 0 | D71: =IFERROR(VLOOKUP(G67&"/1 "&$C71&"-*",[1]Jun!$A:$H,8,),"") -> 42535.74 | H71: =IFERROR((F71-G71)*E71,"") -> 0 | K71: =IFERROR((I71-J71)*E71,"") -> 0 | L71: =IFERROR((F71-G71)/F71*100,"") ->  | M71: =IFERROR((I71-J71)/I71*100,"") -> 
B72: =IF(D72="","",IFERROR(B71+1/24,"")) -> 01:00:00 | C72: 1 | D72: =IFERROR(VLOOKUP(G67&"/1 "&$C72&"-*",[1]Jun!$A:$H,8,),"") -> 42539.04 | E72: =IF(D72="","",D72-D71) -> 3.3 | F72: =IFERROR(VLOOKUP(G67&"/1 "&$C72&"-1",[1]Jun!$A:$C,2,),"") -> 59.9283 | G72: =IFERROR(VLOOKUP(G67&"/1 "&$C72&"-2",[1]Jun!$A:$C,2,),"") -> 28.70518 | H72: 103.036296 | I72: =IFERROR(VLOOKUP(G67&"/1 "&$C72&"-1",[1]Jun!$A:$C,3,),"") -> 15.34149 | J72: =IFERROR(VLOOKUP(G67&"/1 "&$C72&"-2",[1]Jun!$A:$C,3,),"") -> 7.91996 | K72: 24.491049 | L72: =IFERROR((F72-G72)/F72*100,"") -> 52.10079378 | M72: =IFERROR((I72-J72)/I72*100,"") -> 48.37554892
B73: =IF(D73="","",IFERROR(B72+1/24,"")) -> 02:00:00 | C73: 2 | D73: =IFERROR(VLOOKUP(G67&"/1 "&$C73&"-*",[1]Jun!$A:$H,8,),"") -> 42542.61 | E73: 3.57 | F73: =IFERROR(VLOOKUP(G67&"/1 "&$C73&"-1",[1]Jun!$A:$C,2,),"") -> 89.92671 | G73: =IFERROR(VLOOKUP(G67&"/1 "&$C73&"-2",[1]Jun!$A:$C,2,),"") -> 45.64552 | H73: 158.0838483 | I73: =IFERROR(VLOOKUP(G67&"/1 "&$C73&"-1",[1]Jun!$A:$C,3,),"") -> 20.06801 | J73: =IFERROR(VLOOKUP(G67&"/1 "&$C73&"-2",[1]Jun!$A:$C,3,),"") -> 9.23332 | K73: 38.6798433 | L73: 49.24142115 | M73: 53.98985749
B74: 03:00:00 | C74: 3 | D74: =IFERROR(VLOOKUP(G67&"/1 "&$C74&"-*",[1]Jun!$A:$H,8,),"") -> 42546.11 | E74: 3.5 | F74: =IFERROR(VLOOKUP(G67&"/1 "&$C74&"-1",[1]Jun!$A:$C,2,),"") -> 105.901 | G74: =IFERROR(VLOOKUP(G67&"/1 "&$C74&"-2",[1]Jun!$A:$C,2,),"") -> 49.12991 | H74: 198.698815 | I74: =IFERROR(VLOOKUP(G67&"/1 "&$C74&"-1",[1]Jun!$A:$C,3,),"") -> 16.68569 | J74: =IFERROR(VLOOKUP(G67&"/1 "&$C74&"-2",[1]Jun!$A:$C,3,),"") -> 7.95564 | K74: 30.555175 | L74: 53.60769964 | M74: =IFERROR((I74-J74)/I74*100,"") -> 52.32058129
B75: 04:00:00 | C75: 4 | D75: =IFERROR(VLOOKUP(G67&"/1 "&$C75&"-*",[1]Jun!$A:$H,8,),"") -> 42549.62 | E75: 3.51 | F75: =IFERROR(VLOOKUP(G67&"/1 "&$C75&"-1",[1]Jun!$A:$C,2,),"") -> 96.51973 | G75: =IFERROR(VLOOKUP(G67&"/1 "&$C75&"-2",[1]Jun!$A:$C,2,),"") -> 34.95136 | H75: 216.1049787 | I75: =IFERROR(VLOOKUP(G67&"/1 "&$C75&"-1",[1]Jun!$A:$C,3,),"") -> 12.00536 | J75: =IFERROR(VLOOKUP(G67&"/1 "&$C75&"-2",[1]Jun!$A:$C,3,),"") -> 6.19502 | K75: 20.3942934 | L75: 63.78837778 | M75: =IFERROR((I75-J75)/I75*100,"") -> 48.39788228
B76: 05:00:00 | C76: 5 | D76: =IFERROR(VLOOKUP(G67&"/1 "&$C76&"-*",[1]Jun!$A:$H,8,),"") -> 42553.21 | E76: 3.59 | F76: =IFERROR(VLOOKUP(G67&"/1 "&$C76&"-1",[1]Jun!$A:$C,2,),"") -> 76.89536 | G76: =IFERROR(VLOOKUP(G67&"/1 "&$C76&"-2",[1]Jun!$A:$C,2,),"") -> 31.49894 | H76: 162.9731478 | I76: =IFERROR(VLOOKUP(G67&"/1 "&$C76&"-1",[1]Jun!$A:$C,3,),"") -> 6.07807 | J76: =IFERROR(VLOOKUP(G67&"/1 "&$C76&"-2",[1]Jun!$A:$C,3,),"") -> 5.25661 | K76: 2.9490414 | L76: 59.03661807 | M76: =IFERROR((I76-J76)/I76*100,"") -> 13.51514543
B77: 06:00:00 | C77: 6 | D77: =IFERROR(VLOOKUP(G67&"/1 "&$C77&"-*",[1]Jun!$A:$H,8,),"") -> 42556.54 | E77: 3.33 | F77: =IFERROR(VLOOKUP(G67&"/1 "&$C77&"-1",[1]Jun!$A:$C,2,),"") -> 58.46232 | G77: =IFERROR(VLOOKUP(G67&"/1 "&$C77&"-2",[1]Jun!$A:$C,2,),"") -> 27.91673 | H77: 101.7168147 | I77: =IFERROR(VLOOKUP(G67&"/1 "&$C77&"-1",[1]Jun!$A:$C,3,),"") -> 3.84689 | J77: =IFERROR(VLOOKUP(G67&"/1 "&$C77&"-2",[1]Jun!$A:$C,3,),"") -> 1.58363 | K77: 7.5366558 | L77: 52.24833705 | M77: 58.83349927
B78: 07:00:00 | C78: 7 | D78: =IFERROR(VLOOKUP(G67&"/1 "&$C78&"-*",[1]Jun!$A:$H,8,),"") -> 42560.01 | E78: =IF(D78="","",D78-D77) -> 3.47 | F78: =IFERROR(VLOOKUP(G67&"/1 "&$C78&"-1",[1]Jun!$A:$C,2,),"") -> 42.44748 | G78: =IFERROR(VLOOKUP(G67&"/1 "&$C78&"-2",[1]Jun!$A:$C,2,),"") -> 22.83744 | H78: =IFERROR((F78-G78)*E78,"") -> 68.0468388 | I78: =IFERROR(VLOOKUP(G67&"/1 "&$C78&"-1",[1]Jun!$A:$C,3,),"") -> 1.11047 | J78: =IFERROR(VLOOKUP(G67&"/1 "&$C78&"-2",[1]Jun!$A:$C,3,),"") -> 0.89988 | K78: 0.7307473 | L78: 46.19836089 | M78: 18.96404225
B79: 08:00:00 | C79: 8 | D79: =IFERROR(VLOOKUP(G67&"/1 "&$C79&"-*",[1]Jun!$A:$H,8,),"") -> 42563.43 | E79: =IF(D79="","",D79-D78) -> 3.42 | F79: =IFERROR(VLOOKUP(G67&"/1 "&$C79&"-1",[1]Jun!$A:$C,2,),"") -> 43.1247 | G79: =IFERROR(VLOOKUP(G67&"/1 "&$C79&"-2",[1]Jun!$A:$C,2,),"") -> 18.7167 | H79: =IFERROR((F79-G79)*E79,"") -> 83.47536 | I79: =IFERROR(VLOOKUP(G67&"/1 "&$C79&"-1",[1]Jun!$A:$C,3,),"") -> 1.24372 | J79: =IFERROR(VLOOKUP(G67&"/1 "&$C79&"-2",[1]Jun!$A:$C,3,),"") -> 0.96067 | K79: 0.968031 | L79: 56.5986546 | M79: 22.75833789
B80: 09:00:00 | C80: 9 | D80: =IFERROR(VLOOKUP(G67&"/1 "&$C80&"-*",[1]Jun!$A:$H,8,),"") -> 42566.92 | E80: =IF(D80="","",D80-D79) -> 3.49 | F80: =IFERROR(VLOOKUP(G$67&"/1 "&$C80&"-1",[1]Jun!$A:$C,2,),"") -> 43.67163 | G80: =IFERROR(VLOOKUP(G67&"/1 "&$C80&"-2",[1]Jun!$A:$C,2,),"") -> 15.48589 | H80: 98.3682326 | I80: =IFERROR(VLOOKUP(G67&"/1 "&$C80&"-1",[1]Jun!$A:$C,3,),"") -> 0.38737 | J80: =IFERROR(VLOOKUP(G67&"/1 "&$C80&"-2",[1]Jun!$A:$C,3,),"") -> 0 | K80: 1.3519213 | L80: 64.54016028 | M80: 100
B81: 10:00:00 | C81: 10 | D81: =IFERROR(VLOOKUP(G67&"/1 "&$C81&"-*",[1]Jun!$A:$H,8,),"") -> 42570.4 | E81: 3.48 | F81: =IFERROR(VLOOKUP(G67&"/1 "&$C81&"-1",[1]Jun!$A:$C,2,),"") -> 40.26956 | G81: =IFERROR(VLOOKUP(G67&"/1 "&$C81&"-2",[1]Jun!$A:$C,2,),"") -> 12.124 | H81: 97.9465488 | I81: =IFERROR(VLOOKUP(G67&"/1 "&$C81&"-1",[1]Jun!$A:$C,3,),"") -> 0.33904 | J81: =IFERROR(VLOOKUP(G67&"/1 "&$C81&"-2",[1]Jun!$A:$C,3,),"") -> 0.31343 | K81: 0.0891228 | L81: 69.8928918 | M81: 7.553680982
B82: 11:00:00 | C82: 11 | D82: =IFERROR(VLOOKUP(G67&"/1 "&$C82&"-*",[1]Jun!$A:$H,8,),"") -> 42573.79 | E82: 3.39 | F82: =IFERROR(VLOOKUP(G67&"/1 "&$C82&"-1",[1]Jun!$A:$C,2,),"") -> 24.32544 | G82: =IFERROR(VLOOKUP(G67&"/1 "&$C82&"-2",[1]Jun!$A:$C,2,),"") -> 11.32996 | H82: 44.0546772 | I82: =IFERROR(VLOOKUP(G67&"/1 "&$C82&"-1",[1]Jun!$A:$C,3,),"") -> 0.24464 | J82: =IFERROR(VLOOKUP(G67&"/1 "&$C82&"-2",[1]Jun!$A:$C,3,),"") -> 0 | K82: 0.8293296 | L82: 53.42341187 | M82: 100
B83: 12:00:00 | C83: 12 | D83: =IFERROR(VLOOKUP(G67&"/1 "&$C83&"-*",[1]Jun!$A:$H,8,),"") -> 42577.17 | E83: 3.38 | F83: =IFERROR(VLOOKUP(G67&"/1 "&$C83&"-1",[1]Jun!$A:$C,2,),"") -> 27.80214 | G83: =IFERROR(VLOOKUP(G67&"/1 "&$C83&"-2",[1]Jun!$A:$C,2,),"") -> 9.36827 | H83: 62.3064806 | I83: =IFERROR(VLOOKUP(G67&"/1 "&$C83&"-1",[1]Jun!$A:$C,3,),"") -> 0.29996 | J83: =IFERROR(VLOOKUP(G67&"/1 "&$C83&"-2",[1]Jun!$A:$C,3,),"") -> 0.27935 | K83: 0.0696618 | L83: 66.30378093 | M83: 6.870916122
H84: =SUM(H71:H83) -> 1394.812039 | K84: =SUM(K71:K83) -> 128.6448717
D85: время вкл. Нагрева | E85: =IF(ISNA(VLOOKUP(D92,[1]Jun!$H:$I,2,0)),"",VLOOKUP(D92,[1]Jun!$H:$I,2,0)) -> 13:40
D86: время вкл. Эл-ра | E86: =IF(ISNA(VLOOKUP(D92,[1]Jun!$H:$J,3,0)),"",VLOOKUP(D92,[1]Jun!$H:$J,3,0)) -> 15:00 | G86: =D92 -> 42585.45
D87: время остановки
D88: Дата | E88: =IF(E86="","",IF(E86<=INDEX(E:E,MAX(IF(D$1:D85="время вкл. Эл-ра",ROW(D$1:D85)))),1,0)+INDEX(E:E,MAX(IF(D$1:D87="Дата",ROW(D$1:D87))))) -> 2024-06-03 | F88: Цикл № | G88: 5 | J88: NaOH, г/л | L88: =VLOOKUP2caind([2]Jun!$A$1:$G$10000,1,"NaOH/1",COUNTIF($E$3:E88,E88),7,E88,[2]Jun!$K$1:$K$10000) -> 19 | M88: не верно ставит тот же результат а должен второе число ставить | U88: 19
D90: Показания сумматора | E90: проток | G90: Au, мг/л | I90: Ag, мг/л | L90: Извлечение, %
F91: вход | G91: выход | H91: Осаждено, Гр | I91: вход | J91: выход | K91: Осаждено, Гр | L91: Au | M91: Ag
B92: =IF($E$86="","",E86) -> 15:00 | C92: 0 | D92: =IFERROR(VLOOKUP(G88&"/1 "&$C92&"-*",[1]Jun!$A:$H,8,),"") -> 42585.45 | H92: =IFERROR((F92-G92)*E92,"") -> 0 | K92: =IFERROR((I92-J92)*E92,"") -> 0 | L92: =IFERROR((F92-G92)/F92*100,"") ->  | M92: =IFERROR((I92-J92)/I92*100,"") -> 
B93: =IF(D93="","",IFERROR(B92+1/24,"")) -> 16:00:00 | C93: 1 | D93: =IFERROR(VLOOKUP(G88&"/1 "&$C93&"-*",[1]Jun!$A:$H,8,),"") -> 42588.82 | E93: =IF(D93="","",D93-D92) -> 3.37 | F93: =IFERROR(VLOOKUP(G88&"/1 "&$C93&"-1",[1]Jun!$A:$C,2,),"") -> 54.29927 | G93: =IFERROR(VLOOKUP(G88&"/1 "&$C93&"-2",[1]Jun!$A:$C,2,),"") -> 31.1785 | H93: 77.9169949 | I93: =IFERROR(VLOOKUP(G88&"/1 "&$C93&"-1",[1]Jun!$A:$C,3,),"") -> 12.62855 | J93: =IFERROR(VLOOKUP(G88&"/1 "&$C93&"-2",[1]Jun!$A:$C,3,),"") -> 6.2255 | K93: 21.5782785 | L93: =IFERROR((F93-G93)/F93*100,"") -> 42.58025937 | M93: =IFERROR((I93-J93)/I93*100,"") -> 50.70297065
B94: =IF(D94="","",IFERROR(B93+1/24,"")) -> 17:00:00 | C94: 2 | D94: =IFERROR(VLOOKUP(G88&"/1 "&$C94&"-*",[1]Jun!$A:$H,8,),"") -> 42592.31 | E94: 3.49 | F94: =IFERROR(VLOOKUP(G88&"/1 "&$C94&"-1",[1]Jun!$A:$C,2,),"") -> 108.96 | G94: =IFERROR(VLOOKUP(G88&"/1 "&$C94&"-2",[1]Jun!$A:$C,2,),"") -> 51.59035 | H94: 200.2200785 | I94: =IFERROR(VLOOKUP(G88&"/1 "&$C94&"-1",[1]Jun!$A:$C,3,),"") -> 19.64616 | J94: =IFERROR(VLOOKUP(G88&"/1 "&$C94&"-2",[1]Jun!$A:$C,3,),"") -> 9.87928 | K94: 34.0864112 | L94: 52.65202827 | M94: 49.71393901
B95: 18:00:00 | C95: 3 | D95: =IFERROR(VLOOKUP(G88&"/1 "&$C95&"-*",[1]Jun!$A:$H,8,),"") -> 42595.67 | E95: 3.36 | F95: =IFERROR(VLOOKUP(G88&"/1 "&$C95&"-1",[1]Jun!$A:$C,2,),"") -> 109.988 | G95: =IFERROR(VLOOKUP(G88&"/1 "&$C95&"-2",[1]Jun!$A:$C,2,),"") -> 44.28623 | H95: 220.7579472 | I95: =IFERROR(VLOOKUP(G88&"/1 "&$C95&"-1",[1]Jun!$A:$C,3,),"") -> 17.43641 | J95: =IFERROR(VLOOKUP(G88&"/1 "&$C95&"-2",[1]Jun!$A:$C,3,),"") -> 7.17803 | K95: 34.4681568 | L95: 59.73539841 | M95: =IFERROR((I95-J95)/I95*100,"") -> 58.83309695
B96: 19:00:00 | C96: 4 | D96: =IFERROR(VLOOKUP(G88&"/1 "&$C96&"-*",[1]Jun!$A:$H,8,),"") -> 42599.19 | E96: 3.52 | F96: =IFERROR(VLOOKUP(G88&"/1 "&$C96&"-1",[1]Jun!$A:$C,2,),"") -> 100.062 | G96: =IFERROR(VLOOKUP(G88&"/1 "&$C96&"-2",[1]Jun!$A:$C,2,),"") -> 47.09818 | H96: 186.4326464 | I96: =IFERROR(VLOOKUP(G88&"/1 "&$C96&"-1",[1]Jun!$A:$C,3,),"") -> 11.27987 | J96: =IFERROR(VLOOKUP(G88&"/1 "&$C96&"-2",[1]Jun!$A:$C,3,),"") -> 6.43852 | K96: 17.041552 | L96: 52.93100278 | M96: =IFERROR((I96-J96)/I96*100,"") -> 42.92026415
B97: 20:00:00 | C97: 5 | D97: =IFERROR(VLOOKUP(G88&"/1 "&$C97&"-*",[1]Jun!$A:$H,8,),"") -> 42602.59 | E97: 3.4 | F97: =IFERROR(VLOOKUP(G88&"/1 "&$C97&"-1",[1]Jun!$A:$C,2,),"") -> 83.82625 | G97: =IFERROR(VLOOKUP(G88&"/1 "&$C97&"-2",[1]Jun!$A:$C,2,),"") -> 32.84854 | H97: 173.324214 | I97: =IFERROR(VLOOKUP(G88&"/1 "&$C97&"-1",[1]Jun!$A:$C,3,),"") -> 7.59129 | J97: =IFERROR(VLOOKUP(G88&"/1 "&$C97&"-2",[1]Jun!$A:$C,3,),"") -> 5.16393 | K97: 8.253024 | L97: 60.81353991 | M97: =IFERROR((I97-J97)/I97*100,"") -> 31.97559308
B98: 21:00:00 | C98: 6 | D98: =IFERROR(VLOOKUP(G88&"/1 "&$C98&"-*",[1]Jun!$A:$H,8,),"") -> 42606.05 | E98: 3.46 | F98: =IFERROR(VLOOKUP(G88&"/1 "&$C98&"-1",[1]Jun!$A:$C,2,),"") -> 72.76412 | G98: =IFERROR(VLOOKUP(G88&"/1 "&$C98&"-2",[1]Jun!$A:$C,2,),"") -> 27.93233 | H98: 155.1179934 | I98: =IFERROR(VLOOKUP(G88&"/1 "&$C98&"-1",[1]Jun!$A:$C,3,),"") -> 3.99239 | J98: =IFERROR(VLOOKUP(G88&"/1 "&$C98&"-2",[1]Jun!$A:$C,3,),"") -> 3.97437 | K98: 0.0623492 | L98: 61.61249528 | M98: 0.4513587099
B99: 22:00:00 | C99: 7 | D99: =IFERROR(VLOOKUP(G88&"/1 "&$C99&"-*",[1]Jun!$A:$H,8,),"") -> 42609.5 | E99: =IF(D99="","",D99-D98) -> 3.45 | F99: =IFERROR(VLOOKUP(G88&"/1 "&$C99&"-1",[1]Jun!$A:$C,2,),"") -> 54.39202 | G99: =IFERROR(VLOOKUP(G88&"/1 "&$C99&"-2",[1]Jun!$A:$C,2,),"") -> 23.32695 | H99: =IFERROR((F99-G99)*E99,"") -> 107.1744915 | I99: =IFERROR(VLOOKUP(G88&"/1 "&$C99&"-1",[1]Jun!$A:$C,3,),"") -> 2.48062 | J99: =IFERROR(VLOOKUP(G88&"/1 "&$C99&"-2",[1]Jun!$A:$C,3,),"") -> 1.90698 | K99: 1.979058 | L99: 57.1132861 | M99: 23.12486395
B100: 23:00:00 | C100: 8 | D100: =IFERROR(VLOOKUP(G88&"/1 "&$C100&"-*",[1]Jun!$A:$H,8,),"") -> 42612.8 | E100: =IF(D100="","",D100-D99) -> 3.3 | F100: =IFERROR(VLOOKUP(G88&"/1 "&$C100&"-1",[1]Jun!$A:$C,2,),"") -> 50.84955 | G100: =IFERROR(VLOOKUP(G88&"/1 "&$C100&"-2",[1]Jun!$A:$C,2,),"") -> 20.57167 | H100: =IFERROR((F100-G100)*E100,"") -> 99.917004 | I100: =IFERROR(VLOOKUP(G88&"/1 "&$C100&"-1",[1]Jun!$A:$C,3,),"") -> 1.58398 | J100: =IFERROR(VLOOKUP(G88&"/1 "&$C100&"-2",[1]Jun!$A:$C,3,),"") -> 0.50437 | K100: 3.562713 | L100: 59.5440471 | M100: 68.15805755
B101: 1 | C101: 9 | D101: =IFERROR(VLOOKUP(G88&"/1 "&$C101&"-*",[1]Jun!$A:$H,8,),"") -> 42616.34 | E101: =IF(D101="","",D101-D100) -> 3.54 | F101: =IFERROR(VLOOKUP(G$88&"/1 "&$C101&"-1",[1]Jun!$A:$C,2,),"") -> 39.8131 | G101: =IFERROR(VLOOKUP(G88&"/1 "&$C101&"-2",[1]Jun!$A:$C,2,),"") -> 15.27038 | H101: 86.8812288 | I101: =IFERROR(VLOOKUP(G88&"/1 "&$C101&"-1",[1]Jun!$A:$C,3,),"") -> 1.69503 | J101: =IFERROR(VLOOKUP(G88&"/1 "&$C101&"-2",[1]Jun!$A:$C,3,),"") -> 0.84443 | K101: 3.011124 | L101: 61.64483549 | M101: 50.18200268
B102: 1.041666667 | C102: 10 | D102: =IFERROR(VLOOKUP(G88&"/1 "&$C102&"-*",[1]Jun!$A:$H,8,),"") -> 42619.72 | E102: 3.38 | F102: =IFERROR(VLOOKUP(G88&"/1 "&$C102&"-1",[1]Jun!$A:$C,2,),"") -> 40.08685 | G102: =IFERROR(VLOOKUP(G88&"/1 "&$C102&"-2",[1]Jun!$A:$C,2,),"") -> 12.37589 | H102: 93.6630448 | I102: =IFERROR(VLOOKUP(G88&"/1 "&$C102&"-1",[1]Jun!$A:$C,3,),"") -> 1.88788 | J102: =IFERROR(VLOOKUP(G88&"/1 "&$C102&"-2",[1]Jun!$A:$C,3,),"") -> 0 | K102: 6.3810344 | L102: 69.12730733 | M102: 100
B103: 1.083333333 | C103: 11 | D103: =IFERROR(VLOOKUP(G88&"/1 "&$C103&"-*",[1]Jun!$A:$H,8,),"") -> 42623.05 | E103: 3.33 | F103: =IFERROR(VLOOKUP(G88&"/1 "&$C103&"-1",[1]Jun!$A:$C,2,),"") -> 36.1776 | G103: =IFERROR(VLOOKUP(G88&"/1 "&$C103&"-2",[1]Jun!$A:$C,2,),"") -> 12.08166 | H103: 80.2394802 | I103: =IFERROR(VLOOKUP(G88&"/1 "&$C103&"-1",[1]Jun!$A:$C,3,),"") -> 0.54932 | J103: =IFERROR(VLOOKUP(G88&"/1 "&$C103&"-2",[1]Jun!$A:$C,3,),"") -> 0.20941 | K103: 1.1319003 | L103: 66.60458405 | M103: 61.87832229
B104: 1.125 | C104: 12 | D104: =IFERROR(VLOOKUP(G88&"/1 "&$C104&"-*",[1]Jun!$A:$H,8,),"") -> 42626.3 | E104: 3.25 | F104: =IFERROR(VLOOKUP(G88&"/1 "&$C104&"-1",[1]Jun!$A:$C,2,),"") -> 28.65009 | G104: =IFERROR(VLOOKUP(G88&"/1 "&$C104&"-2",[1]Jun!$A:$C,2,),"") -> 6.92698 | H104: 70.6001075 | I104: =IFERROR(VLOOKUP(G88&"/1 "&$C104&"-1",[1]Jun!$A:$C,3,),"") -> 0.79512 | J104: =IFERROR(VLOOKUP(G88&"/1 "&$C104&"-2",[1]Jun!$A:$C,3,),"") -> 0 | K104: 2.58414 | L104: 75.82213529 | M104: 100
H105: =SUM(H92:H104) -> 1552.245231 | K105: =SUM(K92:K104) -> 134.1397414
D106: время вкл. Нагрева | E106: =IF(ISNA(VLOOKUP(D113,[1]Jun!$H:$I,2,0)),"",VLOOKUP(D113,[1]Jun!$H:$I,2,0)) -> 04:00
D107: время вкл. Эл-ра | E107: =IF(ISNA(VLOOKUP(D113,[1]Jun!$H:$J,3,0)),"",VLOOKUP(D113,[1]Jun!$H:$J,3,0)) -> 06:00 | G107: =D113 -> 42634.15
D108: время остановки
D109: Дата | E109: =IF(E107="","",IF(E107<=INDEX(E:E,MAX(IF(D$1:D106="время вкл. Эл-ра",ROW(D$1:D106)))),1,0)+INDEX(E:E,MAX(IF(D$1:D108="Дата",ROW(D$1:D108))))) -> 2024-06-04 | F109: Цикл № | G109: =G88+1 -> 6 | J109: NaOH, г/л | L109: =VLOOKUP2caind([2]Jun!$A$1:$G$10000,1,"NaOH/1",COUNTIF($E$3:E109,E109),7,E109,[2]Jun!$K$1:$K$10000) -> 22 | N109: верно
D111: Показания сумматора | E111: проток | G111: Au, мг/л | I111: Ag, мг/л | L111: Извлечение, %
F112: вход | G112: выход | H112: Осаждено, Гр | I112: вход | J112: выход | K112: Осаждено, Гр | L112: Au | M112: Ag
B113: =IF($E$107="","",E107) -> 06:00 | C113: 0 | D113: =IFERROR(VLOOKUP(G109&"/1 "&$C113&"-*",[1]Jun!$A:$H,8,),"") -> 42634.15 | H113: =IFERROR((F113-G113)*E113,"") -> 0 | K113: =IFERROR((I113-J113)*E113,"") -> 0 | L113: =IFERROR((F113-G113)/F113*100,"") ->  | M113: =IFERROR((I113-J113)/I113*100,"") -> 
B114: =IF(D114="","",IFERROR(B113+1/24,"")) -> 07:00:00 | C114: 1 | D114: =IFERROR(VLOOKUP(G109&"/1 "&$C114&"-*",[1]Jun!$A:$H,8,),"") -> 42637.39 | E114: =IF(D114="","",D114-D113) -> 3.24 | F114: =IFERROR(VLOOKUP(G109&"/1 "&$C114&"-1",[1]Jun!$A:$C,2,),"") -> 50.73111 | G114: =IFERROR(VLOOKUP(G109&"/1 "&$C114&"-2",[1]Jun!$A:$C,2,),"") -> 26.56417 | H114: 78.3008856 | I114: =IFERROR(VLOOKUP(G109&"/1 "&$C114&"-1",[1]Jun!$A:$C,3,),"") -> 13.16748 | J114: =IFERROR(VLOOKUP(G109&"/1 "&$C114&"-2",[1]Jun!$A:$C,3,),"") -> 5.09682 | K114: 26.1489384 | L114: =IFERROR((F114-G114)/F114*100,"") -> 47.63731761 | M114: =IFERROR((I114-J114)/I114*100,"") -> 61.29236574
B115: =IF(D115="","",IFERROR(B114+1/24,"")) -> 08:00:00 | C115: 2 | D115: =IFERROR(VLOOKUP(G109&"/1 "&$C115&"-*",[1]Jun!$A:$H,8,),"") -> 42640.73 | E115: 3.34 | F115: =IFERROR(VLOOKUP(G109&"/1 "&$C115&"-1",[1]Jun!$A:$C,2,),"") -> 67.87801 | G115: =IFERROR(VLOOKUP(G109&"/1 "&$C115&"-2",[1]Jun!$A:$C,2,),"") -> 35.07251 | H115: 109.57037 | I115: =IFERROR(VLOOKUP(G109&"/1 "&$C115&"-1",[1]Jun!$A:$C,3,),"") -> 12.78911 | J115: =IFERROR(VLOOKUP(G109&"/1 "&$C115&"-2",[1]Jun!$A:$C,3,),"") -> 6.57422 | K115: 20.7577326 | L115: 48.3300851 | M115: 48.59517199
B116: 09:00:00 | C116: 3 | D116: =IFERROR(VLOOKUP(G109&"/1 "&$C116&"-*",[1]Jun!$A:$H,8,),"") -> 42644.2 | E116: 3.47 | F116: =IFERROR(VLOOKUP(G109&"/1 "&$C116&"-1",[1]Jun!$A:$C,2,),"") -> 74.87095 | G116: =IFERROR(VLOOKUP(G109&"/1 "&$C116&"-2",[1]Jun!$A:$C,2,),"") -> 45.60837 | H116: 101.5411526 | I116: =IFERROR(VLOOKUP(G109&"/1 "&$C116&"-1",[1]Jun!$A:$C,3,),"") -> 9.59898 | J116: =IFERROR(VLOOKUP(G109&"/1 "&$C116&"-2",[1]Jun!$A:$C,3,),"") -> 6.11398 | K116: 12.09295 | L116: 39.08402391 | M116: =IFERROR((I116-J116)/I116*100,"") -> 36.30594084
B117: 10:00:00 | C117: 4 | D117: =IFERROR(VLOOKUP(G109&"/1 "&$C117&"-*",[1]Jun!$A:$H,8,),"") -> 42647.68 | E117: 3.48 | F117: =IFERROR(VLOOKUP(G109&"/1 "&$C117&"-1",[1]Jun!$A:$C,2,),"") -> 73.83196 | G117: =IFERROR(VLOOKUP(G109&"/1 "&$C117&"-2",[1]Jun!$A:$C,2,),"") -> 38.81474 | H117: 121.8599256 | I117: =IFERROR(VLOOKUP(G109&"/1 "&$C117&"-1",[1]Jun!$A:$C,3,),"") -> 8.16119 | J117: =IFERROR(VLOOKUP(G109&"/1 "&$C117&"-2",[1]Jun!$A:$C,3,),"") -> 4.02634 | K117: 14.389278 | L117: 47.42826819 | M117: =IFERROR((I117-J117)/I117*100,"") -> 50.66479276
B118: 11:00:00 | C118: 5 | D118: =IFERROR(VLOOKUP(G109&"/1 "&$C118&"-*",[1]Jun!$A:$H,8,),"") -> 42651.19 | E118: 3.51 | F118: =IFERROR(VLOOKUP(G109&"/1 "&$C118&"-1",[1]Jun!$A:$C,2,),"") -> 75.09126 | G118: =IFERROR(VLOOKUP(G109&"/1 "&$C118&"-2",[1]Jun!$A:$C,2,),"") -> 29.59693 | H118: 159.6850983 | I118: =IFERROR(VLOOKUP(G109&"/1 "&$C118&"-1",[1]Jun!$A:$C,3,),"") -> 4.6139 | J118: =IFERROR(VLOOKUP(G109&"/1 "&$C118&"-2",[1]Jun!$A:$C,3,),"") -> 2.20285 | K118: 8.4627855 | L118: 60.58538637 | M118: =IFERROR((I118-J118)/I118*100,"") -> 52.25622575
B119: 12:00:00 | C119: 6 | D119: =IFERROR(VLOOKUP(G109&"/1 "&$C119&"-*",[1]Jun!$A:$H,8,),"") -> 42654.6 | E119: 3.41 | F119: =IFERROR(VLOOKUP(G109&"/1 "&$C119&"-1",[1]Jun!$A:$C,2,),"") -> 59.30729 | G119: =IFERROR(VLOOKUP(G109&"/1 "&$C119&"-2",[1]Jun!$A:$C,2,),"") -> 21.83182 | H119: 127.7913527 | I119: =IFERROR(VLOOKUP(G109&"/1 "&$C119&"-1",[1]Jun!$A:$C,3,),"") -> 2.96373 | J119: =IFERROR(VLOOKUP(G109&"/1 "&$C119&"-2",[1]Jun!$A:$C,3,),"") -> 1.49779 | K119: 4.9988554 | L119: 63.18864005 | M119: 49.46267035
B120: 13:00:00 | C120: 7 | D120: =IFERROR(VLOOKUP(G109&"/1 "&$C120&"-*",[1]Jun!$A:$H,8,),"") -> 42658.11 | E120: =IF(D120="","",D120-D119) -> 3.51 | F120: =IFERROR(VLOOKUP(G109&"/1 "&$C120&"-1",[1]Jun!$A:$C,2,),"") -> 53.65994 | G120: =IFERROR(VLOOKUP(G109&"/1 "&$C120&"-2",[1]Jun!$A:$C,2,),"") -> 9.62453 | H120: =IFERROR((F120-G120)*E120,"") -> 154.5642891 | I120: =IFERROR(VLOOKUP(G109&"/1 "&$C120&"-1",[1]Jun!$A:$C,3,),"") -> 0.74164 | J120: =IFERROR(VLOOKUP(G109&"/1 "&$C120&"-2",[1]Jun!$A:$C,3,),"") -> 0.49925 | K120: 0.8507889 | L120: 82.06384502 | M120: 32.68297287
B121: 14:00:00 | C121: 8 | D121: =IFERROR(VLOOKUP(G109&"/1 "&$C121&"-*",[1]Jun!$A:$H,8,),"") -> 42661.59 | E121: =IF(D121="","",D121-D120) -> 3.48 | F121: =IFERROR(VLOOKUP(G109&"/1 "&$C121&"-1",[1]Jun!$A:$C,2,),"") -> 47.71441 | G121: =IFERROR(VLOOKUP(G109&"/1 "&$C121&"-2",[1]Jun!$A:$C,2,),"") -> 13.31976 | H121: =IFERROR((F121-G121)*E121,"") -> 119.693382 | I121: =IFERROR(VLOOKUP(G109&"/1 "&$C121&"-1",[1]Jun!$A:$C,3,),"") -> 0.82875 | J121: =IFERROR(VLOOKUP(G109&"/1 "&$C121&"-2",[1]Jun!$A:$C,3,),"") -> 0.60646 | K121: 0.7735692 | L121: 72.08440804 | M121: 26.82232278
B122: 15:00:00 | C122: 9 | D122: =IFERROR(VLOOKUP(G109&"/1 "&$C122&"-*",[1]Jun!$A:$H,8,),"") -> 42665.12 | E122: =IF(D122="","",D122-D121) -> 3.53 | F122: =IFERROR(VLOOKUP(G$109&"/1 "&$C122&"-1",[1]Jun!$A:$C,2,),"") -> 32.54318 | G122: =IFERROR(VLOOKUP(G109&"/1 "&$C122&"-2",[1]Jun!$A:$C,2,),"") -> 11.73571 | H122: 73.4503691 | I122: =IFERROR(VLOOKUP(G109&"/1 "&$C122&"-1",[1]Jun!$A:$C,3,),"") -> 0.60848 | J122: =IFERROR(VLOOKUP(G109&"/1 "&$C122&"-2",[1]Jun!$A:$C,3,),"") -> 0 | K122: 2.1479344 | L122: 63.93803556 | M122: 100
B123: 16:00:00 | C123: 10 | D123: =IFERROR(VLOOKUP(G109&"/1 "&$C123&"-*",[1]Jun!$A:$H,8,),"") -> 42668.67 | E123: 3.55 | F123: =IFERROR(VLOOKUP(G109&"/1 "&$C123&"-1",[1]Jun!$A:$C,2,),"") -> 28.79272 | G123: =IFERROR(VLOOKUP(G109&"/1 "&$C123&"-2",[1]Jun!$A:$C,2,),"") -> 8.70601 | H123: 71.3078205 | I123: =IFERROR(VLOOKUP(G109&"/1 "&$C123&"-1",[1]Jun!$A:$C,3,),"") -> 0.3977 | J123: =IFERROR(VLOOKUP(G109&"/1 "&$C123&"-2",[1]Jun!$A:$C,3,),"") -> 0.28662 | K123: 0.394334 | L123: 69.76315541 | M123: 27.93060096
B124: 17:00:00 | C124: 11 | D124: =IFERROR(VLOOKUP(G109&"/1 "&$C124&"-*",[1]Jun!$A:$H,8,),"") -> 42672.18 | E124: 3.51 | F124: =IFERROR(VLOOKUP(G109&"/1 "&$C124&"-1",[1]Jun!$A:$C,2,),"") -> 23.97022 | G124: =IFERROR(VLOOKUP(G109&"/1 "&$C124&"-2",[1]Jun!$A:$C,2,),"") -> 7.87289 | H124: 56.5016283 | I124: =IFERROR(VLOOKUP(G109&"/1 "&$C124&"-1",[1]Jun!$A:$C,3,),"") -> 0.32531 | J124: =IFERROR(VLOOKUP(G109&"/1 "&$C124&"-2",[1]Jun!$A:$C,3,),"") -> 0 | K124: 1.1418381 | L124: 67.15553716 | M124: 100
B125: 18:00:00 | C125: 12 | D125: =IFERROR(VLOOKUP(G109&"/1 "&$C125&"-*",[1]Jun!$A:$H,8,),"") -> 42675.64 | E125: 3.46 | F125: =IFERROR(VLOOKUP(G109&"/1 "&$C125&"-1",[1]Jun!$A:$C,2,),"") -> 21.74862 | G125: =IFERROR(VLOOKUP(G109&"/1 "&$C125&"-2",[1]Jun!$A:$C,2,),"") -> 5.89812 | H125: 54.84273 | I125: =IFERROR(VLOOKUP(G109&"/1 "&$C125&"-1",[1]Jun!$A:$C,3,),"") -> 0.54317 | J125: =IFERROR(VLOOKUP(G109&"/1 "&$C125&"-2",[1]Jun!$A:$C,3,),"") -> 0.20456 | K125: 1.1715906 | L125: 72.88048621 | M125: 62.33959902
H126: =IFERROR(SUM(H113:H125),"") -> 1229.109004 | K126: =IFERROR(SUM(K113:K125),"") -> 93.3305951 | O126: ну и так далее
